Cogmind - Beta 14 @@@ ROGUE MODE // 2024.11.30 @ 13:53:10 Player: Amberulez Result: Destroyed by G-47 Trooper with Particle Gun Performance ------------- Evolutions (1) 500 Regions Visited (6) 1200 Robots Destroyed (96) 480 Value Destroyed (1919) 1919 Prototype IDs (5) 100 Alien Tech Used (0) 0 Bonus (2) 2 TOTAL SCORE: 4201 Bonus ------- High Alert Combat Kills 32 Friendly Fire -30 Cogmind --------- Core Integrity 0/400 Matter 244/300 Energy 160/160 System Corruption 1% Temperature Cool (28) Movement Rolling (95) Ox1 Location -8/Mines Parts ------- > --- POWER (1) -------- Light Nuclear Core > --- PROPULSION (2) --- Wheel Wheel > --- UTILITY (4) ------ Large Storage Unit Advanced Targeting Computer Light Armor Plating > --- WEAPON (2) ------- Heavy Assault Rifle Gauss Rifle > --- INVENTORY (15) --- Ion Engine Light Ion Engine Wheel Improved Hover Unit Improved Hover Unit Gravmag System Large Storage Unit High-capacity Matter Pod (200) Experimental Sensor Array Improved Propulsion Shielding System Shield Improved Trap Extractor (0/6) Improved Assault Rifle Remote Datajack Makeshift Axe Peak State ------------ > --- POWER ------------ Deuterium Engine > --- PROPULSION ------- Wheel Compact Wheel > --- UTILITY ---------- Improved Heat Sink Large Storage Unit Advanced Targeting Computer Improved Propulsion Shielding > --- WEAPON ----------- Improved Assault Rifle Rocket Launcher > --- INVENTORY -------- Light Ion Engine Light Ion Engine Wheel Wheel Wheel Improved Hover Unit Improved Hover Unit Improved Hover Unit Large Storage Unit High-capacity Matter Pod Experimental Sensor Array System Shield Improved Trap Extractor Heavy Assault Rifle Mini Grenade Launcher [Rating: 23] Favorites ----------- Power Ion Engine Engine Ion Engine Power Core Light Nuclear Core Propulsion Compact Wheel Treads Light Treads Wheel Compact Wheel Utility Large Storage Unit Device Improved Heat Sink Storage Large Storage Unit Processor Advanced Targeting Computer Protection Light Armor Plating Weapon Mini Grenade Launcher Energy Gun Small Laser Energy Cannon Heavy Particle Cannon Ballistic Gun Heavy Assault Rifle Ballistic Cannon Light Cannon Launcher Mini Grenade Launcher Build | -11 -10 -10 -9 -9 -9 -8 ------- Run | Yrd Mat Min Mat Min Exi Min Slots Evolved 2 | . . . 2 . . . Power . | . . . . . . . Propulsion . | . . . . . . . Utility 2 | . . . 2 . . . Weapon . | . . . . . . . Parts Attached 63 | 8 11 9 20 11 2 2 Power 10 | 2 2 . 3 2 1 . Engine 9 | 2 2 . 3 2 . . Core 1 | . . . . . 1 . Reactor . | . . . . . . . Propulsion 12 | 2 . 3 4 3 . . Treads 3 | 2 . 1 . . . . Leg . | . . . . . . . Wheel 9 | . . 2 4 3 . . Hover . | . . . . . . . Flight . | . . . . . . . Utility 16 | 1 5 1 7 2 . . Device 1 | . . . 1 . . . Storage 2 | 1 1 . . . . . Processor 1 | . . . 1 . . . Hackware . | . . . . . . . Protection 12 | . 4 1 5 2 . . Artifact . | . . . . . . . Weapon 25 | 3 4 5 6 4 1 2 Energy Gun 1 | 1 . . . . . . Energy Cannon 3 | . 1 2 . . . . Ballistic Gun 12 | 2 1 . 5 2 1 1 Ballistic Cannon 3 | . 2 1 . . . . Launcher 6 | . . 2 1 2 . 1 Special Weapon . | . . . . . . . Impact Weapon . | . . . . . . . Slashing Weapon . | . . . . . . . Piercing Weapon . | . . . . . . . Special Melee Weapon . | . . . . . . . Unidentified Prototypes 1 | . . . 1 . . . Parts Lost 7 | . . . 2 3 . 2 Power . | . . . . . . . Propulsion 2 | . . . 1 1 . . Utility 3 | . . . 1 1 . 1 Weapon 2 | . . . . 1 . 1 Highest Loss Streak 2 | . . . 2 1 . 1 To Critical Strikes . | . . . . . . . Average Slot Usage (%) 99 | . 99 100 99 99 100 98 Engine 12 | . 14 14 11 11 7 . Treads 8 | . 28 4 . . . . Wheel 17 | . . 23 21 21 22 22 Device 3 | . . . 8 11 11 10 Storage 12 | . 14 14 11 11 11 11 Processor 3 | . . . 11 11 11 11 Protection 13 | . 13 14 13 10 11 11 Energy Cannon 1 | . . 3 3 . . . Ballistic Gun 6 | . 4 . 17 11 22 16 Ballistic Cannon 5 | . 23 1 1 . . . Launcher 11 | . . 23 . 10 . 4 Peak Build Rating 23 | 6 8 15 22 23 23 23 Average Rating 13 | 4 7 11 20 21 21 21 On Entrance 13 | . 6 8 14 19 21 23 Naked Turns . | . . . . . . . Heaviest Build 42 | 13 34 37 42 40 39 36 Greatest Support 42 | 40 40 42 32 26 20 20 Greatest Overweight (x) 2 | . . 1 1 2 1 1 Average Overweight (x) . | . . . 1 1 1 1 Largest Inventory Capacity 15 | 8 15 15 15 15 15 15 Average Capacity 14 | 6 14 15 15 15 15 15 Most Carried 15 | 6 15 15 15 15 15 15 Average Carried 14 | 3 13 14 14 14 14 14 Final Capacity 15 | 8 15 15 15 15 15 15 Final Carried 15 | 6 15 15 14 14 15 15 Class Distribution -------------------- 78% | Mutant 21% | Scavenger-Mutant Dominant Class ---------------- Mutant | -10/Materials Mutant | -10/Mines Scavenger-Mutant | -9/Materials Mutant | -9/Mines Scavenger-Mutant | -9/Exiles Scavenger-Mutant | -8/Mines Resources | -11 -10 -10 -9 -9 -9 -8 ----------- Run | Yrd Mat Min Mat Min Exi Min Matter Collected 2507 | 134 540 475 604 412 272 70 Remotely . | . . . . . . . Salvage Created 3023 | . 497 338 1132 437 469 150 Parts 214 | . 40 18 80 36 24 16 Haulers Intercepted 3 | . 1 . 2 . . . Recyclers Shooed 2 | . . 1 . 1 . . Parts Field Recycled . | . . . . . . . Retrieved Matter . | . . . . . . . Parts Self-Destructed . | . . . . . . . Prevented . | . . . . . . . Kills | -11 -10 -10 -9 -9 -9 -8 ------- Run | Yrd Mat Min Mat Min Exi Min Combat Hostiles Destroyed 64 | . 17 5 21 13 1 7 Guns 26 | . 4 . 14 3 1 4 Cannons 22 | . 13 4 5 . . . AOE 16 | . . 1 2 10 . 3 Classes Destroyed 14 | . 9 1 4 . . . Worker 9 | . 1 1 4 3 . . Builder 6 | . 1 1 1 2 . 1 Tunneler 2 | . 1 . . 1 . . Hauler 3 | . 1 . 2 . . . Recycler 6 | . 1 2 . 3 . . Mechanic 1 | . . . 1 . . . Operator 1 | . 1 . . . . . Watcher 5 | . 3 . 2 . . . Swarmer 28 | . 9 . 3 10 . 6 Grunt 24 | . 8 4 7 3 1 1 Brawler 1 | . . . 1 . . . Duelist 1 | . . . 1 . . . Sentry 9 | . . . 9 . . . Assembled 1 | . . 1 . . . . Best Kill Streak 7 | . 5 3 7 6 1 3 Combat Bots Only 5 | . 5 2 4 4 1 3 Max Kills in Single Turn 2 | . 1 1 2 2 1 2 Gunslinging 1 | . . . 1 . . . Exploded 2 | . . 1 2 2 . 2 Melee . | . . . . . . . Uniques/NPCs Destroyed . | . . . . . . . Combat | -11 -10 -10 -9 -9 -9 -8 -------- Run | Yrd Mat Min Mat Min Exi Min Hostile Shots Fired 302 | . 67 15 111 82 . 27 Missed 87 | . 22 3 34 23 . 5 Damage Taken 2656 | . 462 220 1089 627 . 258 Core 526 | . 83 42 239 105 . 57 Absorbed by Shields . | . . . . . . . Redirected to Shielding 6 | . 6 . . . . . Core Remaining (%) 75 | 100 . 50 . . . . Volleys Fired 261 | . 57 25 79 45 37 18 Largest 2 | . 2 2 2 2 2 2 Hottest 110 | . 70 110 110 56 51 56 Shots Fired 466 | . 114 30 158 60 74 30 Gun 300 | . 16 . 138 44 74 28 Cannon 143 | . 98 26 19 . . . Launcher 23 | . . 4 1 16 . 2 Special . | . . . . . . . Kinetic 404 | . 114 3 141 44 74 28 Thermal 39 | . . 23 16 . . . Explosive 23 | . . 4 1 16 . 2 Electromagnetic . | . . . . . . . Robot Hit Streak 25 | . 10 7 25 24 21 23 Robot Miss Streak 4 | . 3 3 4 2 1 2 Penetration Max . | . . . . . . . Secondary Targets 2 | . . . 1 . . 1 Max Gunslinging Chain 1 | . . . 1 . . 1 Shots Hit Robots 310 | . 64 16 114 40 57 19 Core Hits 142 | . 29 8 46 31 18 10 Critical Kills . | . . . . . . . Critical Parts Destroyed 1 | . . . . . 1 . Critical Strikes 6 | . 5 . . . 1 . Destroy 1 | . . . . . 1 . Blast 5 | . 5 . . . . . Melee Attacks . | . . . . . . . Impact . | . . . . . . . Slashing . | . . . . . . . Piercing . | . . . . . . . Sneak Attacks . | . . . . . . . Combat Hostiles . | . . . . . . . Follow-up Attacks . | . . . . . . . Damage Inflicted 6534 | . 1099 528 2037 1392 939 539 Guns 3363 | . 83 . 1523 475 939 343 Cannons 1762 | . 993 399 370 . . . Explosions 1295 | . . 103 131 865 . 196 Melee . | . . . . . . . Ramming 114 | . 23 26 13 52 . . Kinetic 4432 | . 1076 18 1581 475 939 343 Thermal 693 | . . 381 312 . . . Explosive 1295 | . . 103 131 865 . 196 Electromagnetic . | . . . . . . . Impact . | . . . . . . . Slashing . | . . . . . . . Piercing . | . . . . . . . Highest Corruption 1 | . . . 1 1 1 1 Average Corruption 1 | . . . 1 1 1 1 Corruption Purged . | . . . . . . . Corruption Blocked . | . . . . . . . Effects 14 | . . . 3 9 1 1 Message Errors 2 | . . . . 1 . 1 Matter Fused 4 | . . . . 4 . . Energy Discharges 2 | . . . . 1 1 . Data Loss (minor) 2 | . . . . 2 . . Data Loss (major) 2 | . . . 2 . . . Alerts 2 | . . . 1 1 . . Overload Shots . | . . . . . . . Overflow Damage 135 | . 18 37 13 23 . 44 Projectiles 57 | . 18 37 2 . . . Explosions 78 | . . . 11 23 . 44 Melee . | . . . . . . . Knockbacks 21 | . 19 . 1 1 . . Impact 1 | . . . . 1 . . Kinetic 17 | . 16 . 1 . . . Secondary 3 | . 3 . . . . . Self-Inflicted Damage 129 | . . 12 6 111 . . Shots 3 | . . . . 3 . . Rammed 13 | 1 4 2 2 4 . . Targets Rammed 14 | 1 5 2 2 4 . . Kicked . | . . . . . . . Crushed 1 | . 1 . . . . . Highest Temperature 357 | . 282 357 318 . . 22 Average Temperature 84 | . 71 100 102 . . 15 Received Heat Transfer 732 | . 138 99 336 78 . 81 Effects 1 | . 1 . . . . . Energy Bleed 1 | . 1 . . . . . Siege Activations . | . . . . . . . Robots Corrupted . | . . . . . . . Combat Hostiles . | . . . . . . . Parts Fried . | . . . . . . . Impact Corruptions . | . . . . . . . Robots Melted . | . . . . . . . Combat Hostiles . | . . . . . . . Parts Melted 1 | . . . 1 . . . Heat Transferred 999 | . . 555 444 . . . Parts Sabotaged . | . . . . . . . Parts Stolen . | . . . . . . . Parts Stripped . | . . . . . . . Power Chain Reactions . | . . . . . . . Alert | -11 -10 -10 -9 -9 -9 -8 ------- Run | Yrd Mat Min Mat Min Exi Min Peak Influence 532 | . 293 166 491 532 . 188 Initial 155 | . . 100 5 155 . . Average 101 | . 123 20 146 336 . 128 Maximum Alert Level 2 | . 1 . 2 2 . . Low Security (%) 75 | 100 62 100 71 3 . 100 Level 1 21 | . 37 . 26 71 . . Level 2 3 | . . . 1 25 . . Level 3 . | . . . . . . . Level 4 . | . . . . . . . Level 5 . | . . . . . . . High Security . | . . . . . . . Max Security . | . . . . . . . Squads Dispatched 7 | . 3 1 3 . . . Investigation 5 | . 2 1 2 . . . Extermination . | . . . . . . . Reinforcement 2 | . 1 . 1 . . . Assault . | . . . . . . . Garrison . | . . . . . . . Intercept . | . . . . . . . Searches Triggered . | . . . . . . . Construction Impeded . | . . . . . . . Haulers Reinforced . | . . . . . . . Active Scanning Responses . | . . . . . . . Cargo Convoy Interrupts . | . . . . . . . Stealth | -11 -10 -10 -9 -9 -9 -8 --------- Run | Yrd Mat Min Mat Min Exi Min Distress Signals 6 | . 1 2 2 1 . . Communications Jammed . | . . . . . . . Distress Signals . | . . . . . . . Times Spotted 99 | . 33 6 34 17 . 9 Peak Tracking Total 5 | . 5 2 5 4 . 3 Tactical Retreats 7 | . 1 1 3 2 . . Traps | -11 -10 -10 -9 -9 -9 -8 ------- Run | Yrd Mat Min Mat Min Exi Min Traps Triggered 3 | . 1 1 1 . . . Indirectly . | . . . . . . . Trap Hack Attempts . | . . . . . . . Triggered . | . . . . . . . Disarmed 6 | . 3 . 3 . . . Reprogrammed . | . . . . . . . Reused . | . . . . . . . Traps Extracted . | . . . . . . . Installed . | . . . . . . . Triggered . | . . . . . . . Machines | -11 -10 -10 -9 -9 -9 -8 ---------- Run | Yrd Mat Min Mat Min Exi Min Machines Disabled 5 | . 2 1 . 1 . 1 Max in Single Turn 1 | . 1 1 . 1 . 1 Machines Repaired . | . . . . . . . Machines Dismantled . | . . . . . . . Machines Sabotaged . | . . . . . . . Overloaded Fab Kills . | . . . . . . . Hacking | -11 -10 -10 -9 -9 -9 -8 --------- Run | Yrd Mat Min Mat Min Exi Min Machines Accessed 15 | . 6 2 6 1 . . Terminals 12 | . 6 . 5 1 . . Fabricators . | . . . . . . . Repair Stations . | . . . . . . . Recycling Units . | . . . . . . . Scanalyzers 1 | . . . 1 . . . Garrison Access . | . . . . . . . Total Hacks 40 | . 16 2 21 1 . . Successful 21 | . 5 2 13 1 . . Failed 18 | . 10 . 8 . . . Catastrophic 1 | . . . 1 . . . Database Lockouts 1 | . 1 . . . . . Manual 21 | . 9 . 12 . . . Terminals 34 | . 16 . 17 1 . . Fabricators . | . . . . . . . Repair Stations . | . . . . . . . Recycling Units . | . . . . . . . Scanalyzers 4 | . . . 4 . . . Garrison Access . | . . . . . . . Terminal Hacks 13 | . 5 2 5 1 . . Robot Analysis 1 | . 1 . . . . . Prototype ID Bank 2 | . 1 . 1 . . . Open Door 2 | . . 2 . . . . Branch Access Points 1 | . . . 1 . . . Emergency Access Points 1 | . 1 . . . . . Unreport Threat 2 | . . . 2 . . . Disarm Traps 3 | . 2 . 1 . . . Zone Layout 1 | . . . . 1 . . Fabricator Hacks . | . . . . . . . Repair Station Hacks . | . . . . . . . Recycling Unit Hacks . | . . . . . . . Scanalyzer 4 | . . . 4 . . . Insert Component 2 | . . . 2 . . . Analyze 2 | . . . 2 . . . Garrison Access Hacks . | . . . . . . . Unauthorized Hacks 4 | . . . 4 . . . Terminals 4 | . . . 4 . . . Botnet 4 | . . . 4 . . . Fabricators . | . . . . . . . Repair Stations . | . . . . . . . Recycling Units . | . . . . . . . Scanalyzers . | . . . . . . . Garrison Access . | . . . . . . . Data Cores Recovered . | . . . . . . . Used . | . . . . . . . Hacking Detections 9 | . 2 . 6 1 . . Full Trace Events 5 | . 1 . 4 . . . Feedback Events 1 | . . . 1 . . . Corruption 1 | . . . 1 . . . Feedback Blocked . | . . . . . . . Robot Schematics Acquired . | . . . . . . . Robots Built . | . . . . . . . Authchips . | . . . . . . . Time . | . . . . . . . Total Robot Build Rating . | . . . . . . . Part Schematics Acquired 2 | . . . 2 . . . Parts Built . | . . . . . . . Authchips . | . . . . . . . Time . | . . . . . . . Total Part Build Rating . | . . . . . . . Parts Repaired . | . . . . . . . Time . | . . . . . . . Parts Recycled . | . . . . . . . Recycled Matter . | . . . . . . . Retrieved Matter . | . . . . . . . Retrieved Components . | . . . . . . . Parts Scanalyzed 2 | . . . 2 . . . Part Schematics Acquired 2 | . . . 2 . . . Parts Damaged . | . . . . . . . Bothacking | -11 -10 -10 -9 -9 -9 -8 ------------ Run | Yrd Mat Min Mat Min Exi Min Used RIF Installer . | . . . . . . . Robots Hacked . | . . . . . . . Non-combat . | . . . . . . . Combat . | . . . . . . . Robot Hacks Applied . | . . . . . . . Relay Couplers Released . | . . . . . . . Fabnet Peak Effective % . | . . . . . . . Robots Rewired . | . . . . . . . Allies Hacked . | . . . . . . . Hacks Repelled . | . . . . . . . Allies | -11 -10 -10 -9 -9 -9 -8 -------- Run | Yrd Mat Min Mat Min Exi Min Total Allies 3 | . . 2 . 1 . . Largest Group 2 | . . 2 . 1 . . Highest-Rated Group 41 | . . 41 . 31 . . Highest-Rated Ally 31 | . . 31 . 31 . . Total Orders . | . . . . . . . Ally Attacks 8 | . . 8 . . . . Total Damage 144 | . . 144 . . . . Kills . | . . . . . . . Allies Corrupted . | . . . . . . . Allies Melted . | . . . . . . . Intel | -11 -10 -10 -9 -9 -9 -8 ------- Run | Yrd Mat Min Mat Min Exi Min Robot Analysis Total 1 | . 1 . . . . . Derelict Logs Recovered 4 | . . 1 . 3 . . Drone Launches . | . . . . . . . Drone Recoveries . | . . . . . . . Exploration | -11 -10 -10 -9 -9 -9 -8 ------------- Run | Yrd Mat Min Mat Min Exi Min Turns Passed 10006 | 102 2231 4320 1282 1063 854 154 Spaces Moved 4575 | 58 1071 950 790 874 724 108 Core 7 | 7 . . . . . . Treads 1489 | 51 1071 367 . . . . Legs . | . . . . . . . Wheels 3079 | . . 583 790 874 724 108 Hover . | . . . . . . . Flight . | . . . . . . . Fastest Speed 50 | 50 160 100 95 95 95 95 Average Speed 121 | 146 160 124 109 104 95 95 Slowest Speed 160 | 160 160 160 115 130 95 95 Overloaded Moves . | . . . . . . . Propulsion Burnouts . | . . . . . . . Robots Hopped . | . . . . . . . Cave-ins Triggered . | . . . . . . . Exploration Rate (%) 65 | 4 96 93 60 98 90 16 Regions Visited 6 Branch Regions 4 Pre-discovered Areas 2 | . . 1 . 1 . . Known Exits Taken 2 | . . . 1 1 . . Unknown Exits Taken 4 | 1 1 1 . . 1 . Scrap Searched 4 | . . 2 . 2 . . Spaces Dug . | . . . . . . . Terrain Destroyed 225 | . . 40 15 154 . 16 Melee . | . . . . . . . Projectile 12 | . . 8 4 . . . AOE 213 | . . 32 11 154 . 16 Terrain Rammed . | . . . . . . . Walls Destroyed . | . . . . . . . Machines Disabled . | . . . . . . . Actions | -11 -10 -10 -9 -9 -9 -8 --------- Run | Yrd Mat Min Mat Min Exi Min Total 8573 | 71 1476 4066 1045 965 821 129 Wait 3497 | . 299 3048 135 15 . . Move 4570 | 58 1070 949 789 873 723 108 Hop . | . . . . . . . Pick Up 60 | 4 17 14 8 9 7 1 Fast Attach 16 | 7 5 1 3 . . . Attach 10 | . . 2 4 3 . 1 Detach 4 | 1 2 . 1 . . . Swap 37 | 1 6 6 13 8 2 1 Drop 59 | . 15 17 11 8 8 . Fire 261 | . 57 25 79 45 37 18 Melee . | . . . . . . . Ram 7 | . . 1 2 4 . . Kick . | . . . . . . . Crush 6 | . 5 1 . . . . Escape Stasis . | . . . . . . . Rewire 46 | . . 2 . . 44 . Trap . | . . . . . . . Miscellaneous . | . . . . . . . Route ------- -11/Scrapyard -10/Materials (discovered 4 exits: *Mat x3 / *Min) -10/Mines (discovered 2 exits: *Mat / [*Sub]) -9/Materials (discovered 4 exits: [*Mat] / *Min / *Sto x2) -9/Mines (discovered 4 exits: [*Mat x2] / *Exi / [*Zio]) -9/Exiles -8/Mines History --------- Turn | Location | Event 14 | -11/Scrapyard | Discovered new exit (range 13) 103 | -11/Scrapyard | Entered Materials 237 | -10/Materials | Central database locked down 309 | -10/Materials | Build established: Mutant 557 | -10/Materials | Discovered new exit (range 7) 811 | -10/Materials | Discovered new exit (range 7) 1565 | -10/Materials | Discovered new exit (range 16) 1798 | -10/Materials | Discovered new exit (range 14) 2334 | -10/Materials | Entered Mines 2339 | -10/Mines | Met a Derelict who couldn't figure out how to use a Trap Extractor 2568 | -10/Mines | Learned Materials terminal intel 3072 | -10/Mines | Assembled infested the area 3135 | -10/Mines | Discovered new exit (range 4) 6369 | -10/Mines | Met a Derelict shopkeep closing up shop 6584 | -10/Mines | Learned location of Storage (-9) 6627 | -10/Mines | Discovered new exit (range 14) 6654 | -10/Mines | Entered Materials 6654 | -9/Materials | Evolved 2 slots: Utility x2 6655 | -9/Materials | Loaded intel: 12 terminal locations 7274 | -9/Materials | Build established: Scavenger-Mutant 7375 | -9/Materials | Discovered new exit (range 7) 7417 | -9/Materials | Discovered new exit (range 15) 7484 | -9/Materials | Identified exit to Mines 7484 | -9/Materials | Identified exit to Storage 7824 | -9/Materials | Core integrity fell below 50% 7936 | -9/Materials | Entered Mines 7940 | -9/Mines | Discovered new exit (range 10) 8304 | -9/Mines | A Derelict revealed a hidden shortcut to a safe place 8330 | -9/Mines | Received a Mining Laser from a helpful Derelict 8357 | -9/Mines | Build established: Mutant 8479 | -9/Mines | Received a Rocket Launcher from a helpful Derelict 8580 | -9/Mines | Learned location of Zion (-7) 8619 | -9/Mines | Discovered new exit (range 9) 8674 | -9/Mines | Found a damaged Exp. Sensor Array with a note attached 8681 | -9/Mines | Found Prototype Device 8754 | -9/Mines | Joined a pair of Derelicts in attacking an 0b10 outpost 8756 | -9/Mines | Core integrity fell below 20% 8772 | -9/Mines | Identified exit to Exiles 8993 | -9/Mines | Deemed a non-threat by the Exiles lab entrance 8999 | -9/Mines | Entered Exiles 8999 | -9/Exiles | Found Exiles lab destroyed 9237 | -9/Exiles | Build established: Scavenger-Mutant 9835 | -9/Exiles | Discovered new exit (range 14) 9853 | -9/Exiles | Entered Mines 10007 | -8/Mines | Destroyed by G-47 Trooper with Particle Gun Last Messages --------------- 09858_ Destroyed Flight Unit. 09858_ S-10 Pest destroyed. 09862_ The unstable cave ceiling collapses. 09890_ U-05 Engineer destroyed. 09892_ Acquired 19 matter. 09894_ R-06 Scavenger collects Terrain Scanner. 09898_ R-06 Scavenger collects Lgt. Ion Engine. 09915_ Rocket Launcher destroyed. 09920_ S-10 Pest destroyed. 09923_ Switching to secondary target: S-10 Pest. 09923_ Slug penetrates S-10 Pest. 09926_ S-10 Pest destroyed. 09931_ Acquired 51 matter. 09941_ Acquired Lgt. Ion Engine. 09977_ 4HI4PUE#%WXO# ,7B9,R> 09984_ Slug penetrates G-50 Soldier. 09996_ G-50 Soldier destroyed. 09999_ Slug penetrates Wall. 09999_ Imp. Heat Sink destroyed. 10002_ Slug penetrates G-47 Trooper. Map ----- +----------------------------------------------------+ | ?????????????????????????##### ####? | | ?????????????????????##### #? | | ?????????????????????# * #? | | ?????????????????????# ### #? | | ?????????????????????# #?# %= #? | | ?????????????????????# #?# " """ #? | | ?????????????????????# #?# """ """??? | | ?????????????????????# #?# """ ""???? | | ?????????????????????# ### ???? | | ?????????????????????# ###########??? | | ?????????????????????##### #????????????? | | ?????????????????????????# #????????????? | | ?????????????????????????# #????????????? | | ?????????????????????????# #???####?? ##? | | ?????????????????????????# #??# ## #? | | ?????????????????????????# #?# #? | | ??????????????# ???????# ## #? | | ??????????????# ##### # #?? | | ???????????????# #?? | | ???????????????# | | ???????????????## ######## ### #####?? | | ??????????????????????????# #???###?????? | | ??????????????????????????# #???????????? | | ??????????????????????????# #???????????? | | ??????????????############# #???????????? | | ??????????????# @ [=g=#???????????? | | ??????????????#=#############???????????? | | ??????????????#[#???????????????????????? | | ??????????????# #???????????????????????? | | ??????????????# #???????????????????????? | | ??????????????#=#???????????????????????? | | ?????????????##*#???????????????????????? | | ????????????##=[##??????????????????????? | | ????????????# = #??????????????????????? | | ????????????# #?????????????????????? | | ????????????# #?????????????????????? | | ????????????## #?????????????????????? | | ?????????????## ##?????????????????????? | | ??????????????####??????????????????????? | | ????????????????????????????????????????? | | ????????????????????????????????????????? | | ????????????????????????????????????????? | | ????????????????????????????????????????? | | ????????????????????????????????????????? | | | | | | | | | | | | | +----------------------------------------------------+ Best States ------------- Heat Dissipation 42 Energy Generation 14 Energy Capacity 275 Matter Stores 300 Matter Capacity 300 Sight Range 16 Terrain Scan Density 10 Armor Coverage 300 Core Shielding 20 Propulsion Shielding 66 Utility Shielding 33 Weapon Shielding 33 Evasion (%) 41 Targeting Accuracy 8 Recoil Reduction 2 Item Schematics ----------------- Imp. Propulsion Shielding | -9/Materials | Scanalyzed System Shield | -9/Materials | Scanalyzed Robot Schematics ------------------ None Fabricated ------------ Nothing Alien Tech Used ----------------- None Achievements -------------- None Challenges ------------ None Game ------ Seed ScanProjectionLegs Manual? 0 Play Time 00:55:57 Cumulative 44.4 hours Start 2024.11.30 @ 12:55:48 End 2024.11.30 @ 13:53:10 Sessions 1 Manual Loads 0 Difficulty Rogue Special Mode None Game No. 59 Rogue 59 Adventurer 0 Explorer 0 Win Type - Total 1 Types 1/0/0/0/0/0/0/0/0 Lore% 16 Gallery% 31 Achievement% 30 Wizard Run 0 Options --------- Layout 2 ASCII 0 Keyboard 1 Movement Arrows Keybinds 0 Fullscreen 1 Font 24/Proggy Map View 50x44 Zoom Use 0% Tactical HUD 1 Map Filters NONE Filters NONE Steam 1 RUN: 11791f4d-9755-4512-8cf4-232f0ab9a8b5